fUSD/lending_fUSD_20240714
["ID","MTS","AMOUNT","RATE_DAILY","PERIOD"]
[332014856,1720933890704,-500.0,0.00013863,2]
[332014857,1720933890714,-500.0,0.00013863,2]
[332014858,1720933890723,-750.31,0.00013863,2]
[332014859,1720933890734,-500.0,0.00013863,2]
[332014860,1720933890745,-500.0,0.00013863,2]
[332014861,1720933890755,-500.0,0.00013863,2]
[332014862,1720933890764,-500.0,0.00013863,2]
[332014863,1720933890773,-500.0,0.00013863,2]
[332014864,1720933890783,-500.0,0.00013863,2]
[332014865,1720933890794,-500.0,0.00013863,2]
[332014866,1720933890804,-500.0,0.00013863,2]
[332014867,1720933890813,-500.0,0.00013863,2]
[332014868,1720933890824,-500.0,0.00013863,2]
[332014869,1720933890834,-500.0,0.00013863,2]
[332014870,1720933890843,-500.0,0.00013863,2]
[332014871,1720933890852,-583.64,0.00013863,2]
[332014872,1720933890861,-500.0,0.00013863,2]
[332014873,1720933890871,-500.0,0.00013863,2]
[332014874,1720933890882,-500.0,0.00013863,2]
[332014875,1720933890893,-500.0,0.00013863,2]
[332014876,1720933890902,-500.0,0.00013863,2]
[332014877,1720933890911,-500.0,0.00013863,2]
[332014878,1720933890919,-500.0,0.00013863,2]
[332014879,1720933890929,-500.0,0.00013863,2]
[332014880,1720933890939,-748.98,0.00013863,2]
[332014881,1720933890948,-275.05371904,0.00013863,2]
[332014882,1720933890958,-500.0,0.00013863,2]
[332014883,1720933890967,-500.0,0.00013863,2]
[332014884,1720933890979,-500.0,0.00013863,2]
[332014885,1720933890990,-500.0,0.00013863,2]
[332014886,1720933890999,-500.0,0.00013863,2]
[332014887,1720933891011,-500.0,0.00013863,2]
[332014888,1720933891020,-500.0,0.00013863,2]
[332014889,1720933891031,-500.0,0.00013863,2]
[332014890,1720933891040,-500.0,0.00013863,2]
[332014891,1720933891051,-500.0,0.00013863,2]
[332014892,1720933891062,-500.0,0.00013863,2]
[332014893,1720933891072,-500.0,0.00013863,2]
[332014894,1720933891081,-500.0,0.00013863,2]
[332014895,1720933891091,-500.0,0.00013863,2]
[332014896,1720933891102,-500.0,0.00013863,2]
[332014897,1720933891112,-500.0,0.00013863,2]
[332014898,1720933891123,-500.0,0.00013863,2]
[332014899,1720933891133,-500.0,0.00013863,2]
[332014900,1720933891144,-787.95,0.00013863,2]
[332014901,1720933891154,-500.0,0.00013863,2]
[332014902,1720933891164,-500.0,0.00013863,2]
[332014903,1720933891173,-500.0,0.00013863,2]
[332014904,1720933891183,-1976.42,0.00013863,2]
[332014905,1720933891192,-502.37,0.00013863,2]
[332014906,1720933891202,-500.0,0.00013863,2]
[332014907,1720933891212,-500.0,0.00013863,2]
[332014908,1720933891222,-500.0,0.00013863,2]
[332014909,1720933891231,-500.0,0.00013863,2]
[332014910,1720933891241,-500.0,0.00013863,2]
[332014911,1720933891251,-500.0,0.00013863,2]
[332014912,1720933891261,-668.73,0.00013863,2]
[332014913,1720933891271,-500.0,0.00013863,2]
[332014914,1720933891280,-500.0,0.00013863,2]
[332014915,1720933891289,-500.0,0.00013863,2]
[332014916,1720933891298,-595.45,0.00013863,2]
[332014917,1720933891307,-500.0,0.00013863,2]
[332014918,1720933891316,-570.13,0.00013863,2]
[332014919,1720933891325,-500.0,0.00013863,2]
[332014920,1720933891334,-950.84,0.00013863,2]
[332014921,1720933891344,-500.0,0.00013863,2]
[332014922,1720933891354,-500.0,0.00013863,2]
[332014923,1720933891363,-525.82,0.00013863,2]
[332014924,1720933891373,-500.0,0.00013863,2]
[332014925,1720933891383,-500.0,0.00013863,2]
[332014926,1720933891394,-500.0,0.00013863,2]
[332014927,1720933891404,-500.0,0.00013863,2]
[332014928,1720933891587,-500.0,0.00013863,2]
[332014929,1720933891597,-500.0,0.00013863,2]
[332014930,1720933891606,-500.0,0.00013863,2]
[332014931,1720933891615,-500.0,0.00013863,2]
[332014932,1720933891625,-500.0,0.00013863,2]
[332014933,1720933891634,-500.0,0.00013863,2]
[332014934,1720933891643,-500.0,0.00013863,2]
[332014935,1720933891654,-751.44,0.00013863,2]
[332014936,1720933891666,-500.0,0.00013863,2]
[332014937,1720933891675,-2597.63,0.00013863,2]
[332014938,1720933891686,-500.0,0.00013863,2]
[332014939,1720933891696,-500.0,0.00013863,2]
[332014940,1720933891705,-500.0,0.00013863,2]
[332014941,1720933891715,-500.0,0.00013863,2]
[332014942,1720933891724,-1511.39,0.00013863,2]
[332014943,1720933891734,-500.0,0.00013863,2]
[332014944,1720933891743,-500.0,0.00013863,2]
[332014945,1720933891752,-500.0,0.00013863,2]
[332014946,1720933891762,-511.02,0.00013863,2]
[332014947,1720933891771,-500.0,0.00013863,2]
[332014948,1720933891781,-500.0,0.00013863,2]
[332014949,1720933891790,-500.0,0.00013863,2]
[332014950,1720933891799,-500.0,0.00013863,2]
[332014951,1720933891809,-501.81,0.00013863,2]
[332014952,1720933891818,-500.0,0.00013863,2]
[332014953,1720933891827,-500.0,0.00013863,2]
[332014954,1720933891837,-500.0,0.00013863,2]
[332014955,1720933891846,-500.0,0.00013863,2]
[332014956,1720933891855,-500.0,0.00013863,2]
[332014957,1720933891864,-500.0,0.00013863,2]
[332014958,1720933891874,-500.0,0.00013863,2]
[332014959,1720933891883,-500.0,0.00013863,2]
[332014960,1720933891893,-500.0,0.00013863,2]
[332014961,1720933891906,-500.0,0.00013863,2]
[332014962,1720933891915,-500.0,0.00013863,2]
[332014963,1720933891924,-500.0,0.00013863,2]
[332014964,1720933891933,-500.0,0.00013863,2]
[332014965,1720933891942,-500.0,0.00013863,2]
[332014966,1720933891951,-500.0,0.00013863,2]
[332014967,1720933891960,-500.0,0.00013863,2]
[332014968,1720933891970,-503.75559587,0.00013863,2]
[332014969,1720933891980,-500.0,0.00013863,2]
[332014970,1720933891989,-500.0,0.00013863,2]
[332014971,1720933891998,-548.76,0.00013863,2]
[332014972,1720933892007,-970.12,0.00013863,2]
[332014973,1720933892016,-774.34,0.00013863,2]
[332014974,1720933892026,-505.03318868,0.00013863,2]
[332014975,1720933892035,-753.19,0.00013863,2]
[332014976,1720933892043,-500.0,0.00013863,2]
[332014977,1720933892052,-500.0,0.00013863,2]
[332014978,1720933892062,-500.0,0.00013863,2]
[332014979,1720933892071,-500.0,0.00013863,2]
[332014980,1720933892080,-500.0,0.00013863,2]
[332014981,1720933892089,-500.0,0.00013863,2]
[332014982,1720933892098,-1001.1,0.00013863,2]
[332014983,1720933892107,-500.0,0.00013863,2]
[332014984,1720933892116,-500.0,0.00013863,2]
[332014985,1720933892125,-728.66,0.00013863,2]
[332014986,1720933892135,-500.0,0.00013863,2]
[332014987,1720933892144,-509.5,0.00013863,2]
[332014988,1720933892154,-500.0,0.00013863,2]
[332014989,1720933892164,-500.0,0.00013863,2]
[332014990,1720933892173,-500.0,0.00013863,2]
[332014991,1720933892182,-500.0,0.00013863,2]
[332014992,1720933892191,-500.0,0.00013863,2]
[332014993,1720933892201,-500.0,0.00013863,2]
[332014994,1720933892210,-500.0,0.00013863,2]
[332014995,1720933892219,-500.0,0.00013863,2]
[332014996,1720933892229,-1108.19,0.00013863,2]
[332014997,1720933892238,-211.36325922,0.00013863,2]
[332014998,1720933892248,-656.77,0.00013863,2]
[332014999,1720933892257,-500.0,0.00013863,2]
[332015000,1720933892266,-500.0,0.00013863,2]
[332015001,1720933892276,-500.0,0.00013863,2]
[332015002,1720933892285,-693.96,0.00013863,2]
[332015003,1720933892295,-500.0,0.00013863,2]
[332015004,1720933892305,-500.0,0.00013863,2]
[332015005,1720933892314,-500.0,0.00013863,2]
[332015006,1720933892323,-500.0,0.00013863,2]
[332015007,1720933892332,-500.0,0.00013863,2]
[332015008,1720933892342,-835.36,0.00013863,2]
[332015009,1720933892351,-500.0,0.00013863,2]
[332015010,1720933892360,-500.0,0.00013863,2]
[332015011,1720933892370,-500.0,0.00013863,2]
[332015012,1720933892380,-500.0,0.00013863,2]
[332015013,1720933892393,-500.0,0.00013863,2]
[332015014,1720933892406,-500.0,0.00013863,2]
[332015015,1720933892415,-500.0,0.00013863,2]
[332015016,1720933892424,-500.0,0.00013863,2]
[332015017,1720933892438,-841.56,0.00013863,2]
[332015018,1720933892447,-500.0,0.00013863,2]
[332015019,1720933892456,-500.0,0.00013863,2]
[332015020,1720933892467,-500.0,0.00013863,2]
[332015021,1720933892476,-500.0,0.00013863,2]
[332015022,1720933892485,-500.0,0.00013863,2]
[332015023,1720933892495,-687.57,0.00013863,2]
[332015024,1720933892504,-500.0,0.00013863,2]
[332015025,1720933892514,-500.0,0.00013863,2]
[332015026,1720933892524,-500.0,0.00013863,2]
[332015027,1720933892533,-500.0,0.00013863,2]
[332015028,1720933892542,-500.0,0.00013863,2]
[332015029,1720933892551,-541.57,0.00013863,2]
[332015030,1720933892560,-500.0,0.00013863,2]
[332015031,1720933892569,-500.0,0.00013863,2]
[332015032,1720933892579,-500.0,0.00013863,2]
[332015033,1720933892588,-500.0,0.00013863,2]
[332015034,1720933892597,-511.92,0.00013863,2]
[332015035,1720933892606,-500.0,0.00013863,2]
[332015036,1720933892616,-500.0,0.00013863,2]
[332015037,1720933892626,-1289.33,0.00013863,2]
[332015038,1720933892637,-500.0,0.00013863,2]
[332015039,1720933892649,-500.0,0.00013863,2]
[332015040,1720933892658,-500.0,0.00013863,2]
[332015041,1720933892668,-500.0,0.00013863,2]
[332015042,1720933892677,-500.0,0.00013863,2]
[332015043,1720933892687,-500.0,0.00013863,2]
[332015044,1720933892696,-500.0,0.00013863,2]
[332015045,1720933892705,-548.55,0.00013863,2]
[332015046,1720933892714,-500.0,0.00013863,2]
[332015047,1720933892724,-872.36,0.00013863,2]
[332015048,1720933892733,-500.0,0.00013863,2]
[332015049,1720933892743,-505.31102177,0.00013863,2]
[332015050,1720933892753,-500.0,0.00013863,2]
[332015051,1720933892762,-510.73,0.00013863,2]
[332015052,1720933892771,-845.68,0.00013863,2]
[332015053,1720933892781,-500.0,0.00013863,2]
[332015054,1720933892790,-500.0,0.00013863,2]
[332015055,1720933892799,-500.0,0.00013863,2]
[332015056,1720933892808,-500.0,0.00013863,2]
[332015057,1720933892817,-500.0,0.00013863,2]
[332015058,1720933892826,-500.0,0.00013863,2]
[332015059,1720933892835,-500.0,0.00013863,2]
[332015060,1720933892844,-500.0,0.00013863,2]
[332015061,1720933892853,-500.0,0.00013863,2]
[332015062,1720933892863,-892.42,0.00013863,2]
[332015063,1720933892873,-505.89050903,0.00013863,2]
[332015064,1720933892882,-500.0,0.00013863,2]
[332015065,1720933892891,-500.0,0.00013863,2]
[332015066,1720933892902,-500.0,0.00013863,2]
[332015067,1720933892911,-500.0,0.00013863,2]
[332015068,1720933892920,-500.0,0.00013863,2]
[332015069,1720933892930,-500.0,0.00013863,2]
[332015070,1720933892939,-500.0,0.00013863,2]
[332015071,1720933892948,-500.0,0.00013863,2]
[332015072,1720933892958,-500.0,0.00013863,2]
[332015073,1720933892967,-500.0,0.00013863,2]
[332015074,1720933892976,-500.0,0.00013863,2]
[332015075,1720933892985,-500.0,0.00013863,2]
[332015076,1720933892995,-500.0,0.00013863,2]
[332015077,1720933893004,-500.0,0.00013863,2]
[332015078,1720933893013,-500.0,0.00013863,2]
[332015079,1720933893022,-620.32,0.00013863,2]
[332015080,1720933893032,-500.0,0.00013863,2]
[332015081,1720933893042,-500.0,0.00013863,2]
[332015082,1720933893051,-500.0,0.00013863,2]
[332015083,1720933893060,-500.0,0.00013863,2]
[332015084,1720933893069,-642.02,0.00013863,2]
[332015085,1720933893078,-588.81,0.00013863,2]
[332015086,1720933893087,-506.81,0.00013863,2]
[332015087,1720933893097,-500.0,0.00013863,2]
[332015088,1720933893106,-500.0,0.00013863,2]
[332015089,1720933893116,-500.0,0.00013863,2]
[332015090,1720933893125,-500.0,0.00013863,2]
[332015091,1720933893134,-500.0,0.00013863,2]
[332015092,1720933893144,-500.0,0.00013863,2]
[332015093,1720933893154,-500.0,0.00013863,2]
[332015094,1720933893164,-500.0,0.00013863,2]
[332015095,1720933893173,-705.66,0.00013863,2]
[332015096,1720933893183,-500.0,0.00013863,2]
[332015097,1720933893193,-500.0,0.00013863,2]
[332015098,1720933893202,-500.0,0.00013863,2]
[332015099,1720933893212,-500.0,0.00013863,2]
[332015100,1720933893221,-593.57,0.00013863,2]
[332015101,1720933893230,-506.03,0.00013863,2]
[332015102,1720933893239,-500.0,0.00013863,2]
[332015103,1720933893248,-500.0,0.00013863,2]
[332015104,1720933893258,-500.0,0.00013863,2]
[332015105,1720933893267,-750.85,0.00013863,2]
[332015106,1720933893277,-614.21,0.00013863,2]
[332015107,1720933893286,-500.0,0.00013863,2]
[332015108,1720933893296,-828.18,0.00013863,2]
[332015109,1720933893306,-500.0,0.00013863,2]
[332015110,1720933893315,-500.0,0.00013863,2]
[332015111,1720933893324,-688.04,0.00013863,2]
[332015112,1720933893334,-500.0,0.00013863,2]
[332015113,1720933893343,-500.0,0.00013863,2]
[332015114,1720933893352,-500.0,0.00013863,2]
[332015115,1720933893362,-500.0,0.00013863,2]
[332015116,1720933893371,-500.0,0.00013863,2]
[332015117,1720933893382,-500.0,0.00013863,2]
[332015118,1720933893394,-506.82126434,0.00013863,2]
[332015119,1720933893405,-500.0,0.00013863,2]
[332015120,1720933893415,-500.0,0.00013863,2]
[332015121,1720933893426,-500.0,0.00013863,2]
[332015122,1720933893435,-500.0,0.00013863,2]
[332015123,1720933893445,-500.0,0.00013863,2]
[332015124,1720933893455,-500.48,0.00013863,2]
[332015125,1720933893466,-583.11,0.00013863,2]
[332015126,1720933893476,-500.0,0.00013863,2]
[332015127,1720933893485,-626.9,0.00013863,2]
[332015128,1720933893495,-500.0,0.00013863,2]
[332015129,1720933893505,-587.79,0.00013863,2]
[332015130,1720933893514,-500.0,0.00013863,2]
[332015131,1720933893523,-602.95,0.00013863,2]
[332015132,1720933893532,-500.0,0.00013863,2]
[332015133,1720933893541,-500.0,0.00013863,2]
[332015134,1720933893550,-560.96,0.00013863,2]
[332015135,1720933893560,-500.0,0.00013863,2]
[332015136,1720933893569,-500.0,0.00013863,2]
[332015137,1720933893578,-622.62494526,0.00013863,2]
[332015138,1720933893588,-500.0,0.00013863,2]
[332015139,1720933893597,-500.0,0.00013863,2]
[332015140,1720933893606,-500.0,0.00013863,2]
[332015141,1720933893616,-504.39050957,0.00013863,2]
[332015142,1720933893625,-500.0,0.00013863,2]
[332015143,1720933893634,-500.0,0.00013863,2]
[332015144,1720933893644,-500.0,0.00013863,2]
[332015145,1720933893654,-500.0,0.00013863,2]
[332015146,1720933893664,-500.0,0.00013863,2]
[332015147,1720933893673,-500.0,0.00013863,2]
[332015148,1720933893683,-500.0,0.00013863,2]
[332015149,1720933893692,-751.05,0.00013863,2]
[332015150,1720933893701,-1137.19,0.00013863,2]
[332015151,1720933893710,-767.6,0.00013863,2]
[332015152,1720933893720,-500.0,0.00013863,2]
[332015153,1720933893729,-500.0,0.00013863,2]
[332015154,1720933893739,-500.0,0.00013863,2]
[332015155,1720933893748,-500.0,0.00013863,2]
[332015156,1720933893758,-500.0,0.00013863,2]
[332015157,1720933893768,-1434.38,0.00013863,2]
[332015158,1720933893777,-500.0,0.00013863,2]
[332015159,1720933893786,-500.0,0.00013863,2]
[332015160,1720933893796,-500.0,0.00013863,2]
[332015161,1720933893805,-500.0,0.00013863,2]
[332015162,1720933893814,-500.0,0.00013863,2]
[332015163,1720933893823,-500.0,0.00013863,2]
[332015164,1720933893833,-500.0,0.00013863,2]
[332015165,1720933893842,-500.0,0.00013863,2]
[332015166,1720933893851,-510.88,0.00013863,2]
[332015167,1720933893861,-500.0,0.00013863,2]
[332015168,1720933893871,-930.87,0.00013863,2]
[332015169,1720933893881,-638.82,0.00013863,2]
[332015170,1720933893890,-500.0,0.00013863,2]
[332015171,1720933893900,-500.0,0.00013863,2]
[332015172,1720933893909,-500.0,0.00013863,2]
[332015173,1720933893919,-500.0,0.00013863,2]
[332015174,1720933893928,-500.0,0.00013863,2]
[332015175,1720933893937,-593.63,0.00013863,2]
[332015176,1720933893946,-500.0,0.00013863,2]
[332015177,1720933893956,-500.0,0.00013863,2]
[332015178,1720933893965,-500.0,0.00013863,2]
[332015179,1720933893975,-500.0,0.00013863,2]
[332015180,1720933893984,-500.0,0.00013863,2]
[332015181,1720933893994,-762.3,0.00013863,2]
[332015182,1720933894003,-500.0,0.00013863,2]
[332015183,1720933894012,-726.27,0.00013863,2]
[332015184,1720933894021,-1121.8,0.00013863,2]
[332015185,1720933894030,-500.0,0.00013863,2]
[332015186,1720933894039,-500.0,0.00013863,2]
[332015187,1720933894048,-500.0,0.00013863,2]
[332015188,1720933894057,-500.0,0.00013863,2]
[332015189,1720933894066,-635.96284505,0.00013863,2]
[332015190,1720933894075,-500.0,0.00013863,2]
[332015191,1720933894084,-500.0,0.00013863,2]
[332015192,1720933894093,-500.0,0.00013863,2]
[332015193,1720933894103,-1694.77,0.00013863,2]
[332015194,1720933894112,-500.0,0.00013863,2]
[332015195,1720933894121,-1390.47,0.00013863,2]
[332015196,1720933894131,-500.0,0.00013863,2]
[332015197,1720933894140,-500.0,0.00013863,2]
[332015198,1720933894151,-500.0,0.00013863,2]
[332015199,1720933894161,-632.59,0.00013863,2]
[332015200,1720933894171,-500.0,0.00013863,2]
[332015201,1720933894181,-500.0,0.00013863,2]
[332015202,1720933894191,-500.0,0.00013863,2]
[332015203,1720933894200,-500.0,0.00013863,2]
[332015204,1720933894210,-500.0,0.00013863,2]
[332015205,1720933894220,-500.0,0.00013863,2]
[332015206,1720933894229,-500.0,0.00013863,2]
[332015207,1720933894239,-500.0,0.00013863,2]
[332015208,1720933894249,-500.0,0.00013863,2]
[332015209,1720933894259,-500.0,0.00013863,2]
[332015210,1720933894268,-500.0,0.00013863,2]
[332015211,1720933894278,-500.0,0.00013863,2]
[332015212,1720933894288,-543.04,0.00013863,2]
[332015213,1720933894298,-500.0,0.00013863,2]
[332015214,1720933894308,-500.0,0.00013863,2]
[332015215,1720933894317,-500.0,0.00013863,2]
[332015216,1720933894327,-500.0,0.00013863,2]
[332015217,1720933894337,-500.0,0.00013863,2]
[332015218,1720933894346,-500.0,0.00013863,2]
[332015219,1720933894356,-500.0,0.00013863,2]
[332015220,1720933894365,-500.0,0.00013863,2]
[332015221,1720933894375,-500.0,0.00013863,2]
[332015222,1720933894389,-158.49121522,0.00013863,2]
[332015223,1720933894399,-500.0,0.00013863,2]
[332015224,1720933894409,-704.4,0.00013863,2]
[332015225,1720933894419,-500.0,0.00013863,2]
[332015226,1720933894430,-502.3873349,0.00013863,2]
[332015227,1720933894440,-623.65,0.00013863,2]
[332015228,1720933894451,-500.0,0.00013863,2]
[332015229,1720933894462,-500.0,0.00013863,2]
[332015230,1720933894472,-500.0,0.00013863,2]
[332015231,1720933894481,-500.0,0.00013863,2]
[332015232,1720933894491,-500.0,0.00013863,2]
[332015233,1720933894501,-500.0,0.00013863,2]
[332015234,1720933894511,-500.0,0.00013863,2]
[332015235,1720933894521,-500.0,0.00013863,2]
[332015236,1720933894531,-612.45,0.00013863,2]
[332015237,1720933894721,-670.77,0.00013863,2]
[332015238,1720933894731,-500.0,0.00013863,2]
[332015239,1720933894741,-500.0,0.00013863,2]
[332015240,1720933894751,-2455.39,0.00013863,2]
[332015241,1720933894761,-500.0,0.00013863,2]
[332015242,1720933894771,-261.7111698,0.00013863,2]
[332015243,1720933894781,-500.0,0.00013863,2]
[332015244,1720933894792,-500.0,0.00013863,2]
[332015245,1720933894802,-500.0,0.00013863,2]
[332015246,1720933894813,-784.9,0.00013863,2]
[332015247,1720933894823,-500.0,0.00013863,2]
[332015248,1720933894832,-500.0,0.00013863,2]
[332015249,1720933894842,-500.0,0.00013863,2]
[332015250,1720933894851,-508.39470186,0.00013863,2]
[332015251,1720933894860,-500.0,0.00013863,2]
[332015252,1720933894870,-500.0,0.00013863,2]
[332015253,1720933894880,-500.0,0.00013863,2]
[332015254,1720933894890,-500.0,0.00013863,2]
[332015255,1720933894900,-500.0,0.00013863,2]
[332015256,1720933894909,-500.0,0.00013863,2]
[332015257,1720933894919,-500.0,0.00013863,2]
[332015258,1720933894929,-500.0,0.00013863,2]
[332015259,1720933894938,-500.0,0.00013863,2]
[332015260,1720933894947,-500.0,0.00013863,2]
[332015261,1720933894957,-802.06,0.00013863,2]
[332015262,1720933894966,-500.0,0.00013863,2]
[332015263,1720933894976,-1831.6,0.00013863,2]
[332015264,1720933894985,-500.0,0.00013863,2]
[332015265,1720933894995,-241.51583615,0.00013863,2]
[332015266,1720933895005,-500.0,0.00013863,2]
[332015267,1720933895014,-701.41,0.00013863,2]
[332015268,1720933895024,-500.0,0.00013863,2]
[332015269,1720933895034,-4854.49,0.00013863,2]
[332015270,1720933895043,-500.0,0.00013863,2]
[332015271,1720933895052,-500.0,0.00013863,2]
[332015272,1720933895062,-500.0,0.00013863,2]
[332015273,1720933895072,-500.0,0.00013863,2]
[332015274,1720933895081,-500.0,0.00013863,2]
[332015275,1720933895091,-500.0,0.00013863,2]
[332015276,1720933895100,-500.0,0.00013863,2]
[332015277,1720933895111,-500.0,0.00013863,2]
[332015278,1720933895122,-500.0,0.00013863,2]
[332015279,1720933895132,-500.0,0.00013863,2]
[332015280,1720933895143,-500.0,0.00013863,2]
[332015281,1720933895154,-500.0,0.00013863,2]
[332015282,1720933895164,-500.0,0.00013863,2]
[332015283,1720933895173,-500.0,0.00013863,2]
[332015284,1720933895185,-500.0,0.00013863,2]
[332015285,1720933895196,-836.77,0.00013863,2]
[332015286,1720933895207,-500.0,0.00013863,2]
[332015287,1720933895217,-500.0,0.00013863,2]
[332015288,1720933895227,-799.18,0.00013863,2]
[332015289,1720933895237,-150.0,0.00013868,2]
[332015290,1720933895247,-186.73745471,0.00013874,2]
[332015291,1720933895257,-150.0,0.00013879,2]
[332015292,1720933895266,-174.90357,0.0001388,2]
[332015293,1720933895276,-171.200428,0.0001388,2]
[332015294,1720933895286,-155.208721,0.0001388,2]
[332015295,1720933895295,-177.897855,0.0001388,2]
[332015296,1720933895305,-152.790958,0.0001388,2]
[332015297,1720933895315,-192.332697,0.0001388,2]
[332015298,1720933895325,-174.066975,0.0001388,2]
[332015299,1720933895334,-186.546146,0.0001388,2]
[332015300,1720933895347,-182.515931,0.0001388,2]
[332015301,1720933895356,-181.719253,0.0001388,2]
[332015302,1720933895366,-153.106715,0.0001388,2]
[332015303,1720933895379,-176.154772,0.0001388,2]
[332015304,1720933895393,-178.614439,0.0001388,2]
[332015305,1720933895404,-179.27189,0.0001388,2]
[332015306,1720933895414,-161.860684,0.0001388,2]
[332015307,1720933895425,-192.832814,0.0001388,2]
[332015308,1720933895435,-198.479556,0.0001388,2]
[332015309,1720933895444,-177.367034,0.0001388,2]
[332015310,1720933895454,-175.341086,0.0001388,2]
[332015311,1720933895464,-170.224364,0.0001388,2]
[332015312,1720933895475,-159.889629,0.0001388,2]
[332015313,1720933895484,-195.895831,0.0001388,2]
[332015314,1720933895494,-155.90394,0.0001388,2]
[332015315,1720933895503,-12007.219599,0.0001388,2]
[332015316,1720933895512,-222.333863,0.0001388,2]
[332015317,1720933895525,-412.6184,0.0001388,2]
[332015318,1720933895534,-5678.343345,0.0001388,2]
[332015319,1720933895543,-203.613466,0.0001388,2]
[332015320,1720933895552,-284.909346,0.0001388,2]
[332015321,1720933895561,-3987.249233,0.0001388,2]
[332015322,1720933895570,-255.171724,0.0001388,2]
[332015323,1720933895579,-488.522963,0.0001388,2]
[332015324,1720933895588,-267.741001,0.0001388,2]
[332015325,1720933895597,-181.684392,0.0001388,2]
[332015326,1720933895606,-532.907782,0.0001388,2]
[332015327,1720933895615,-535.482001,0.0001388,2]
[332015328,1720933895624,-185.80484,0.0001388,2]
[332015329,1720933895634,-202.639152,0.0001388,2]
[332015330,1720933895643,-1559.77932,0.0001388,2]
[332015331,1720933895654,-304.109246,0.0001388,2]
[332015332,1720933895664,-1107.629452,0.0001388,2]
[332015333,1720933895673,-1031.928922,0.0001388,2]
[332015334,1720933895683,-156.855901,0.0001388,2]
[332015335,1720933895692,-541.87221,0.0001388,2]
[332015336,1720933895701,-1062.920744,0.0001388,2]
[332015337,1720933895710,-409.39068,0.0001388,2]
[332015338,1720933895719,-846.327752,0.0001388,2]
[332015339,1720933895728,-282.109251,0.0001388,2]
[332015340,1720933895738,-170.579451,0.0001388,2]
[332015341,1720933895747,-195.32244,0.0001388,2]
[332015342,1720933895757,-678.33577,0.0001388,2]
[332015343,1720933895766,-2583.681189,0.0001388,2]
[332015344,1720933895775,-1129.457611,0.0001388,2]
[332015345,1720933895784,-1398.795923,0.0001388,2]
[332015346,1720933895794,-617.031723,0.0001388,2]
[332015347,1720933895803,-299.389953,0.0001388,2]
[332015348,1720933895812,-376.48587,0.0001388,2]
[332015349,1720933895822,-466.265307,0.0001388,2]
[332015350,1720933895831,-617.031722,0.0001388,2]
[332015351,1720933895840,-247.568656,0.0001388,2]
[332015352,1720933895850,-376.485871,0.0001388,2]
[332015353,1720933895859,-466.265308,0.0001388,2]
[332015354,1720933895869,-369.463067,0.0001388,2]
[332015355,1720933895878,-289.062407,0.0001388,2]